{"text_format":"1","workbook":"xlsx","n_sheets":2,"sheets":["Баланс","служебный"],"not_rendered":{"charts":0,"images":0,"macros":1,"external_links":0,"defined_names":1,"comments":1,"pivot_tables":0},"unopened":[],"bounds":{"document_bytes":16777216,"sheet_cells":100000,"rows_first":2000,"rows_last":500,"rows_between":2000,"halvings":0,"cell_chars":16384,"cell_head_chars":4096},"cells_cut":0,"cells_raw":0,"read":"whole","date_system":"1900"}

{"sheet":"Баланс","index":0,"n_rows":3,"n_cols":4,"rows_kept":3,"cut":false,"hidden":false,"merged":[]}
["вид работ","Клиент","Система","Вес"]
["Восстановление",null,"Проф лок",14.6]
["Отключение",null,"КБ лок",2.35]

{"sheet":"служебный","index":1,"n_rows":45,"n_cols":12,"rows_kept":45,"cut":false,"hidden":false,"merged":[]}
["№","вид работ","Система"]
[null,null,"Проф лок",14.6,null,null,null,null,null,null,null,{"$f":"IF(ISNA(VLOOKUP(C2,Баланс!$C$2:$D$3,2,0)),\"\",VLOOKUP(C2,Баланс!$C$2:$D$3,2,0)*IF(B2=\"отключение\",-1,1))","v":14.6}]
[null,null,"КБ лок",2.35,null,null,null,null,null,null,null,{"$f":"IF(ISNA(VLOOKUP(C3,Баланс!$C$2:$D$3,2,0)),\"\",VLOOKUP(C3,Баланс!$C$2:$D$3,2,0)*IF(B3=\"отключение\",-1,1))","v":2.35}]
[null,"Восстановление","Проф лок",14.6,null,null,null,null,null,null,null,{"$f":"IF(ISNA(VLOOKUP(C4,Баланс!$C$2:$D$3,2,0)),\"\",VLOOKUP(C4,Баланс!$C$2:$D$3,2,0)*IF(B4=\"отключение\",-1,1))","v":14.6}]
[null,null,"КБ лок",2.35,null,null,null,null,null,null,null,{"$f":"IF(ISNA(VLOOKUP(C5,Баланс!$C$2:$D$3,2,0)),\"\",VLOOKUP(C5,Баланс!$C$2:$D$3,2,0)*IF(B5=\"отключение\",-1,1))","v":2.35}]
[null,null,"Проф лок",14.6,null,null,null,null,null,null,null,{"$f":"IF(ISNA(VLOOKUP(C6,Баланс!$C$2:$D$3,2,0)),\"\",VLOOKUP(C6,Баланс!$C$2:$D$3,2,0)*IF(B6=\"отключение\",-1,1))","v":14.6}]
[null,"Восстановление","КБ лок",2.35,null,null,null,null,null,null,null,{"$f":"IF(ISNA(VLOOKUP(C7,Баланс!$C$2:$D$3,2,0)),\"\",VLOOKUP(C7,Баланс!$C$2:$D$3,2,0)*IF(B7=\"отключение\",-1,1))","v":2.35}]
[null,"Отключение",null,"",null,null,null,null,null,null,null,{"$f":"IF(ISNA(VLOOKUP(C8,Баланс!$C$2:$D$3,2,0)),\"\",VLOOKUP(C8,Баланс!$C$2:$D$3,2,0)*IF(B8=\"отключение\",-1,1))","v":""}]
[null,"Восстановление",null,"",null,null,null,null,null,null,null,{"$f":"IF(ISNA(VLOOKUP(C9,Баланс!$C$2:$D$3,2,0)),\"\",VLOOKUP(C9,Баланс!$C$2:$D$3,2,0)*IF(B9=\"отключение\",-1,1))","v":""}]
[null,"Отключение","КБ лок",-2.35,null,null,null,null,null,null,null,{"$f":"IF(ISNA(VLOOKUP(C10,Баланс!$C$2:$D$3,2,0)),\"\",VLOOKUP(C10,Баланс!$C$2:$D$3,2,0)*IF(B10=\"отключение\",-1,1))","v":-2.35}]
[null,"Отключение","КБ лок",-2.35,null,null,null,null,null,null,null,{"$f":"IF(ISNA(VLOOKUP(C11,Баланс!$C$2:$D$3,2,0)),\"\",VLOOKUP(C11,Баланс!$C$2:$D$3,2,0)*IF(B11=\"отключение\",-1,1))","v":-2.35}]
[null,null,"Проф лок",14.6,null,null,null,null,null,null,null,{"$f":"IF(ISNA(VLOOKUP(C12,Баланс!$C$2:$D$3,2,0)),\"\",VLOOKUP(C12,Баланс!$C$2:$D$3,2,0)*IF(B12=\"отключение\",-1,1))","v":14.6}]
[null,null,null,null,null,null,null,null,null,null,null,{"$f":"IF(ISNA(VLOOKUP(C13,Баланс!$C$2:$D$3,2,0)),\"\",VLOOKUP(C13,Баланс!$C$2:$D$3,2,0)*IF(B13=\"отключение\",-1,1))","v":""}]
[null,null,null,null,null,null,null,null,null,null,null,{"$f":"IF(ISNA(VLOOKUP(C14,Баланс!$C$2:$D$3,2,0)),\"\",VLOOKUP(C14,Баланс!$C$2:$D$3,2,0)*IF(B14=\"отключение\",-1,1))","v":""}]
[null,null,null,null,null,null,null,null,null,null,null,{"$f":"IF(ISNA(VLOOKUP(C15,Баланс!$C$2:$D$3,2,0)),\"\",VLOOKUP(C15,Баланс!$C$2:$D$3,2,0)*IF(B15=\"отключение\",-1,1))","v":""}]
[null,null,null,"",null,null,null,null,null,null,null,{"$f":"IF(ISNA(VLOOKUP(C16,Баланс!$C$2:$D$3,2,0)),\"\",VLOOKUP(C16,Баланс!$C$2:$D$3,2,0)*IF(B16=\"отключение\",-1,1))","v":""}]
[null,null,null,null,null,null,null,null,null,null,null,{"$f":"IF(ISNA(VLOOKUP(C17,Баланс!$C$2:$D$3,2,0)),\"\",VLOOKUP(C17,Баланс!$C$2:$D$3,2,0)*IF(B17=\"отключение\",-1,1))","v":""}]
[null,null,null,null,null,null,null,null,null,null,null,{"$f":"IF(ISNA(VLOOKUP(C18,Баланс!$C$2:$D$3,2,0)),\"\",VLOOKUP(C18,Баланс!$C$2:$D$3,2,0)*IF(B18=\"отключение\",-1,1))","v":""}]
[null,null,null,null,null,null,null,null,null,null,null,{"$f":"IF(ISNA(VLOOKUP(C19,Баланс!$C$2:$D$3,2,0)),\"\",VLOOKUP(C19,Баланс!$C$2:$D$3,2,0)*IF(B19=\"отключение\",-1,1))","v":""}]
[null,null,null,null,null,null,null,null,null,null,null,{"$f":"IF(ISNA(VLOOKUP(C20,Баланс!$C$2:$D$3,2,0)),\"\",VLOOKUP(C20,Баланс!$C$2:$D$3,2,0)*IF(B20=\"отключение\",-1,1))","v":""}]
[null,null,null,null,null,null,null,null,null,null,null,{"$f":"IF(ISNA(VLOOKUP(C21,Баланс!$C$2:$D$3,2,0)),\"\",VLOOKUP(C21,Баланс!$C$2:$D$3,2,0)*IF(B21=\"отключение\",-1,1))","v":""}]
[null,null,null,null,null,null,null,null,null,null,null,{"$f":"IF(ISNA(VLOOKUP(C22,Баланс!$C$2:$D$3,2,0)),\"\",VLOOKUP(C22,Баланс!$C$2:$D$3,2,0)*IF(B22=\"отключение\",-1,1))","v":""}]
[null,null,null,null,null,null,null,null,null,null,null,{"$f":"IF(ISNA(VLOOKUP(C23,Баланс!$C$2:$D$3,2,0)),\"\",VLOOKUP(C23,Баланс!$C$2:$D$3,2,0)*IF(B23=\"отключение\",-1,1))","v":""}]
[null,null,null,null,null,null,null,null,null,null,null,{"$f":"IF(ISNA(VLOOKUP(C24,Баланс!$C$2:$D$3,2,0)),\"\",VLOOKUP(C24,Баланс!$C$2:$D$3,2,0)*IF(B24=\"отключение\",-1,1))","v":""}]
[null,null,null,null,null,null,null,null,null,null,null,{"$f":"IF(ISNA(VLOOKUP(C25,Баланс!$C$2:$D$3,2,0)),\"\",VLOOKUP(C25,Баланс!$C$2:$D$3,2,0)*IF(B25=\"отключение\",-1,1))","v":""}]
[null,null,null,null,null,null,null,null,null,null,null,{"$f":"IF(ISNA(VLOOKUP(C26,Баланс!$C$2:$D$3,2,0)),\"\",VLOOKUP(C26,Баланс!$C$2:$D$3,2,0)*IF(B26=\"отключение\",-1,1))","v":""}]
[null,null,null,null,null,null,null,null,null,null,null,{"$f":"IF(ISNA(VLOOKUP(C27,Баланс!$C$2:$D$3,2,0)),\"\",VLOOKUP(C27,Баланс!$C$2:$D$3,2,0)*IF(B27=\"отключение\",-1,1))","v":""}]
[null,null,null,null,null,null,null,null,null,null,null,{"$f":"IF(ISNA(VLOOKUP(C28,Баланс!$C$2:$D$3,2,0)),\"\",VLOOKUP(C28,Баланс!$C$2:$D$3,2,0)*IF(B28=\"отключение\",-1,1))","v":""}]
[null,null,null,null,null,null,null,null,null,null,null,{"$f":"IF(ISNA(VLOOKUP(C29,Баланс!$C$2:$D$3,2,0)),\"\",VLOOKUP(C29,Баланс!$C$2:$D$3,2,0)*IF(B29=\"отключение\",-1,1))","v":""}]
[null,null,null,null,null,null,null,null,null,null,null,{"$f":"IF(ISNA(VLOOKUP(C30,Баланс!$C$2:$D$3,2,0)),\"\",VLOOKUP(C30,Баланс!$C$2:$D$3,2,0)*IF(B30=\"отключение\",-1,1))","v":""}]
[null,null,null,null,null,null,null,null,null,null,null,{"$f":"IF(ISNA(VLOOKUP(C31,Баланс!$C$2:$D$3,2,0)),\"\",VLOOKUP(C31,Баланс!$C$2:$D$3,2,0)*IF(B31=\"отключение\",-1,1))","v":""}]
[null,null,null,null,null,null,null,null,null,null,null,{"$f":"IF(ISNA(VLOOKUP(C32,Баланс!$C$2:$D$3,2,0)),\"\",VLOOKUP(C32,Баланс!$C$2:$D$3,2,0)*IF(B32=\"отключение\",-1,1))","v":""}]
[null,null,null,null,null,null,null,null,null,null,null,{"$f":"IF(ISNA(VLOOKUP(C33,Баланс!$C$2:$D$3,2,0)),\"\",VLOOKUP(C33,Баланс!$C$2:$D$3,2,0)*IF(B33=\"отключение\",-1,1))","v":""}]
[null,null,null,null,null,null,null,null,null,null,null,{"$f":"IF(ISNA(VLOOKUP(C34,Баланс!$C$2:$D$3,2,0)),\"\",VLOOKUP(C34,Баланс!$C$2:$D$3,2,0)*IF(B34=\"отключение\",-1,1))","v":""}]
[null,null,null,null,null,null,null,null,null,null,null,{"$f":"IF(ISNA(VLOOKUP(C35,Баланс!$C$2:$D$3,2,0)),\"\",VLOOKUP(C35,Баланс!$C$2:$D$3,2,0)*IF(B35=\"отключение\",-1,1))","v":""}]
[null,null,null,null,null,null,null,null,null,null,null,{"$f":"IF(ISNA(VLOOKUP(C36,Баланс!$C$2:$D$3,2,0)),\"\",VLOOKUP(C36,Баланс!$C$2:$D$3,2,0)*IF(B36=\"отключение\",-1,1))","v":""}]
[null,null,null,null,null,null,null,null,null,null,null,{"$f":"IF(ISNA(VLOOKUP(C37,Баланс!$C$2:$D$3,2,0)),\"\",VLOOKUP(C37,Баланс!$C$2:$D$3,2,0)*IF(B37=\"отключение\",-1,1))","v":""}]
[null,null,null,null,null,null,null,null,null,null,null,{"$f":"IF(ISNA(VLOOKUP(C38,Баланс!$C$2:$D$3,2,0)),\"\",VLOOKUP(C38,Баланс!$C$2:$D$3,2,0)*IF(B38=\"отключение\",-1,1))","v":""}]
[null,null,null,null,null,null,null,null,null,null,null,{"$f":"IF(ISNA(VLOOKUP(C39,Баланс!$C$2:$D$3,2,0)),\"\",VLOOKUP(C39,Баланс!$C$2:$D$3,2,0)*IF(B39=\"отключение\",-1,1))","v":""}]
[null,null,null,null,null,null,null,null,null,null,null,{"$f":"IF(ISNA(VLOOKUP(C40,Баланс!$C$2:$D$3,2,0)),\"\",VLOOKUP(C40,Баланс!$C$2:$D$3,2,0)*IF(B40=\"отключение\",-1,1))","v":""}]
[null,null,null,null,null,null,null,null,null,null,null,{"$f":"IF(ISNA(VLOOKUP(C41,Баланс!$C$2:$D$3,2,0)),\"\",VLOOKUP(C41,Баланс!$C$2:$D$3,2,0)*IF(B41=\"отключение\",-1,1))","v":""}]
[null,null,null,null,null,null,null,null,null,null,null,{"$f":"IF(ISNA(VLOOKUP(C42,Баланс!$C$2:$D$3,2,0)),\"\",VLOOKUP(C42,Баланс!$C$2:$D$3,2,0)*IF(B42=\"отключение\",-1,1))","v":""}]
[null,null,null,null,null,null,null,null,null,null,null,{"$f":"IF(ISNA(VLOOKUP(C43,Баланс!$C$2:$D$3,2,0)),\"\",VLOOKUP(C43,Баланс!$C$2:$D$3,2,0)*IF(B43=\"отключение\",-1,1))","v":""}]
[null,null,null,null,null,null,null,null,null,null,null,{"$f":"IF(ISNA(VLOOKUP(C44,Баланс!$C$2:$D$3,2,0)),\"\",VLOOKUP(C44,Баланс!$C$2:$D$3,2,0)*IF(B44=\"отключение\",-1,1))","v":""}]
[null,null,null,null,null,null,null,null,null,null,null,{"$f":"IF(ISNA(VLOOKUP(C45,Баланс!$C$2:$D$3,2,0)),\"\",VLOOKUP(C45,Баланс!$C$2:$D$3,2,0)*IF(B45=\"отключение\",-1,1))","v":""}]